bitfinex/quotes_SOLUSD_20250819
["timestamp","ask_amount","ask_price","bid_price","bid_amount"]
[1755630186082,0.03,176.34,176.32,17.00308304]
[1755630186377,0.03,176.34,176.33,17.00308304]
[1755630186588,0.03,176.34,176.31,0.69]
[1755630186742,0.03,176.34,176.32,17.69308304]
[1755630187141,0.03,176.34,176.26,13.59559401]
[1755630187142,0.03,176.34,176.33,17.69308304]
[1755630187539,0.03,176.37,176.33,17.69308304]
[1755630187738,0.03,176.39,176.36,17.00308304]
[1755630187944,0.03,176.39,176.38,17.00308304]
[1755630188174,0.03,176.39,176.38,17.69308304]
[1755630188369,0.03,176.39,176.35,0.69]
[1755630188877,0.03,176.39,176.34,17.00308304]
[1755630189175,0.03,176.39,176.35,17.00308304]
[1755630189356,0.03,176.39,176.36,0.69]
[1755630189785,0.03,176.39,176.35,17.00308304]
[1755630190146,0.03,176.39,176.35,17.69308304]
[1755630190348,0.03,176.39,176.36,17.00308304]
[1755630190550,0.03,176.39,176.25,52.66]
[1755630190551,17.00308304,176.37,176.32,0.69]
[1755630190788,0.49,176.37,176.3,17.00308304]
[1755630190951,17.00308304,176.36,176.29,0.69]
[1755630191152,43.2,176.39,176.3,17.00308304]
[1755630191462,42.71,176.39,176.32,17.00308304]
[1755630191660,17.00308304,176.38,176.32,17.00308304]
[1755630191856,42.71,176.39,176.37,17.00308304]
[1755630192044,0.03,176.39,176.38,17.00308304]
[1755630192244,0.03,176.39,176.34,0.69]
[1755630192467,0.03,176.39,176.38,11.47660119]
[1755630192681,0.03,176.39,176.38,12.16660119]
[1755630193680,42.78,176.46,176.39,13.59559401]
[1755630193887,42.78,176.46,176.35,0.14216157]
[1755630193888,42.78,176.46,176.4,0.69]
[1755630194092,42.78,176.46,176.41,11.47660119]
[1755630194278,42.78,176.46,176.42,11.47660119]
[1755630194453,11.47660119,176.44,176.38,0.69]
[1755630194659,0.49,176.45,176.36,11.47660119]
[1755630194660,11.47660119,176.42,176.36,11.47660119]
[1755630194870,11.47660119,176.4,176.35,12.16660119]
[1755630195072,11.47660119,176.41,176.36,12.16660119]
[1755630195280,3.68263049,176.45,176.39,11.47660119]
[1755630195478,173.78,176.46,176.42,11.47660119]
[1755630195677,173.78,176.46,176.44,11.47660119]
[1755630195862,131.0,176.46,176.43,11.47660119]
[1755630196556,131.0,176.46,176.41,0.69]
[1755630196762,142.47660119,176.46,176.41,11.47660119]
[1755630197001,11.47660119,176.42,176.35,0.69]
[1755630197282,11.47660119,176.42,176.36,11.47660119]
[1755630197593,11.47660119,176.44,176.37,0.69]
[1755630197894,11.47660119,176.44,176.38,11.47660119]
[1755630198187,11.47660119,176.43,176.37,12.16660119]
[1755630198485,11.47660119,176.43,176.38,11.47660119]
[1755630198793,11.47660119,176.42,176.32,13.59559401]
[1755630198956,11.47660119,176.4,176.35,11.47660119]
[1755630199284,11.47660119,176.41,176.36,12.16660119]
[1755630199588,11.47660119,176.37,176.33,0.06]
[1755630199760,11.47660119,176.36,176.33,0.06]
[1755630199959,26.49,176.37,176.33,0.06]
[1755630200263,26.0,176.37,176.33,0.06]
[1755630200462,26.0,176.37,176.34,0.69]
[1755630200661,37.47660119,176.37,176.33,0.06]
[1755630201169,11.47660119,176.36,176.33,0.06]
[1755630202180,11.47660119,176.34,176.33,0.06]
[1755630204087,11.47660119,176.35,176.33,0.06]
[1755630204878,54.29660119,176.38,176.33,0.75]
[1755630205079,11.47660119,176.37,176.33,0.06]
[1755630205502,11.47660119,176.35,176.33,0.06]
[1755630206005,0.49,176.36,176.33,0.06]
[1755630206204,11.47660119,176.34,176.33,0.06]
[1755630206589,26.0,176.35,176.33,0.06]
[1755630206784,11.47660119,176.36,176.33,0.06]
[1755630208589,11.47660119,176.35,176.33,0.06]
[1755630208999,68.82,176.38,176.33,0.06]
[1755630209398,11.47660119,176.36,176.33,0.06]
[1755630209610,68.82,176.38,176.33,12.22660119]
[1755630209611,42.82,176.38,176.33,12.22660119]
[1755630209811,42.82,176.38,176.34,0.69]
[1755630210118,42.82,176.38,176.34,12.16660119]
[1755630210703,11.47660119,176.36,176.33,0.06]
[1755630210897,43.31,176.38,176.33,0.06]
[1755630211221,11.47660119,176.35,176.33,0.06]
[1755630212090,11.47660119,176.34,176.33,0.06]
[1755630213223,0.49,176.42,176.33,12.22660119]
[1755630213389,11.47660119,176.4,176.34,11.47660119]
[1755630213593,37.47660119,176.4,176.34,11.47660119]
[1755630213908,42.7,176.41,176.37,11.47660119]
[1755630214107,42.7,176.41,176.37,12.16660119]
[1755630214302,42.7,176.41,176.37,11.47660119]
[1755630214514,42.7,176.41,176.38,0.7]
[1755630215022,42.7,176.41,176.38,12.17660119]
[1755630215816,11.50660119,176.43,176.4,11.47660119]
[1755630215817,0.03,176.43,176.4,11.47660119]
[1755630216019,0.03,176.43,176.33,13.65559401]
[1755630216020,11.50660119,176.43,176.38,12.17660119]
[1755630216326,11.47660119,176.41,176.36,26.0]
[1755630216535,11.47660119,176.37,176.33,0.06]
[1755630217104,11.47660119,176.37,176.33,0.76]
[1755630217426,11.47660119,176.39,176.34,11.47660119]
[1755630217610,54.17660119,176.4,176.35,0.7]
[1755630217811,11.47660119,176.38,176.33,0.06]
[1755630218013,11.47660119,176.37,176.33,0.06]
[1755630218416,11.47660119,176.37,176.33,0.76]
[1755630218618,42.7,176.4,176.34,0.7]
[1755630218818,11.47660119,176.39,176.34,0.7]
[1755630219023,11.47660119,176.38,176.33,11.53660119]
[1755630219223,11.47660119,176.38,176.33,12.23660119]
[1755630219619,11.47660119,176.39,176.34,12.17660119]
[1755630219827,11.47660119,176.39,176.35,0.7]
[1755630220713,54.17660119,176.4,176.36,0.7]
[1755630221040,54.17660119,176.4,176.34,11.47660119]
[1755630221730,54.17660119,176.4,176.35,0.7]
[1755630221903,54.17660119,176.4,176.33,11.53660119]
[1755630221904,11.47660119,176.39,176.33,11.53660119]
[1755630222104,11.47660119,176.36,176.33,0.06]
[1755630222411,11.47660119,176.34,176.33,0.06]
[1755630222814,42.64,176.36,176.33,0.06]
[1755630223014,11.47660119,176.35,176.33,0.76]
[1755630223650,42.64,176.36,176.33,0.76]
[1755630223651,11.47660119,176.34,176.33,0.06]
[1755630224030,11.96660119,176.34,176.33,0.06]
[1755630224338,15.65892828,176.34,176.33,0.06]
[1755630226442,15.16892828,176.34,176.33,0.06]
[1755630227035,15.65892828,176.34,176.33,0.06]
[1755630229651,26.14216157,176.32,176.31,0.06]
[1755630229955,11.61876276,176.3,176.29,0.06]
[1755630230121,19.93219831,176.3,176.29,0.06]
[1755630230321,20.42219831,176.3,176.29,0.06]
[1755630230521,26.0,176.28,176.27,0.06]
[1755630230754,83.82892828,176.28,176.27,0.06]
[1755630231459,88.47409257,176.28,176.27,0.06]
[1755630231630,83.82892828,176.28,176.27,0.06]
[1755630231825,80.13660119,176.28,176.27,0.76]
[1755630232150,11.47660119,176.32,176.27,0.76]
[1755630232346,11.47660119,176.28,176.27,0.06]
[1755630233241,54.13660119,176.3,176.27,0.76]
[1755630233446,42.66,176.3,176.27,0.76]
[1755630233644,11.47660119,176.29,176.27,0.06]
[1755630233942,5.66995333,176.37,176.27,0.06]
[1755630233943,11.47660119,176.31,176.28,0.7]
[1755630234144,11.47660119,176.3,176.29,0.7]
[1755630234588,11.47660119,176.3,176.27,0.06]
[1755630234726,11.47660119,176.28,176.27,0.06]
[1755630235518,37.96660119,176.28,176.27,0.06]
[1755630235722,15.65977854,176.28,176.27,0.06]
[1755630236236,11.96660119,176.28,176.27,0.06]
[1755630236438,15.65977854,176.28,176.27,0.06]
[1755630236948,41.65977854,176.28,176.27,0.06]
[1755630237120,15.16977854,176.28,176.27,0.06]
[1755630237319,26.0,176.28,176.27,0.06]
[1755630237528,41.16977854,176.28,176.27,0.06]
[1755630238224,37.47660119,176.28,176.27,0.06]
[1755630238644,37.47660119,176.28,176.27,0.76]
[1755630238836,37.47660119,176.28,176.27,0.06]
[1755630240469,37.47660119,176.28,176.21,0.7]
[1755630240470,41.65615422,176.28,176.21,0.7]
[1755630240787,11.47660119,176.22,176.21,0.7]
[1755630240988,11.47660119,176.22,176.18,0.7]
[1755630241138,11.47660119,176.2,176.19,0.7]
[1755630241344,42.66,176.23,176.2,0.7]
[1755630241345,11.47660119,176.21,176.2,0.7]
[1755630241648,42.66,176.25,176.2,11.47660119]
[1755630241849,42.66,176.26,176.2,11.47660119]
[1755630242047,54.13660119,176.28,176.22,11.47660119]
[1755630242362,54.13660119,176.28,176.23,12.17660119]
[1755630242363,11.47660119,176.28,176.23,12.17660119]
[1755630242559,4.62110846,176.36,176.24,0.7]
[1755630242889,11.47660119,176.27,176.24,0.7]
[1755630243098,11.47660119,176.27,176.25,0.7]
[1755630243583,11.47660119,176.27,176.26,0.7]
[1755630244079,11.47660119,176.28,176.26,0.7]
[1755630244581,54.13660119,176.29,176.27,0.7]
[1755630244758,11.47660119,176.32,176.28,0.7]
[1755630244961,54.13660119,176.32,176.29,0.7]
[1755630245160,54.13660119,176.32,176.3,0.7]
[1755630245359,42.66,176.32,176.3,0.7]
[1755630245556,54.13660119,176.32,176.3,0.7]
[1755630245757,54.13660119,176.32,176.31,0.7]
[1755630245970,54.13660119,176.34,176.31,0.7]
[1755630246281,4.62110846,176.41,176.32,0.7]
[1755630246282,42.66,176.35,176.32,0.7]
[1755630246593,11.47660119,176.4,176.34,11.47660119]
[1755630246802,11.47660119,176.35,176.32,0.7]
[1755630247098,11.47660119,176.33,176.32,0.7]
[1755630247294,11.47660119,176.35,176.29,11.47660119]
[1755630247460,11.47660119,176.35,176.33,0.7]
[1755630247668,54.13660119,176.36,176.33,0.7]
[1755630247890,54.13660119,176.36,176.34,0.7]
[1755630248076,42.66,176.36,176.32,11.47660119]
[1755630248277,42.66,176.36,176.35,0.7]
[1755630249076,4.54079227,176.42,176.35,0.7]
[1755630249077,59.6125592,176.39,176.35,0.7]
[1755630249267,16.9725592,176.38,176.35,0.7]
[1755630249477,16.9725592,176.37,176.32,0.7]
[1755630249680,16.9725592,176.35,176.32,0.7]
[1755630250311,16.9725592,176.35,176.29,16.9725592]
[1755630250312,16.9725592,176.34,176.26,13.59559401]
[1755630250474,42.64,176.36,176.29,0.7]
[1755630250676,16.9725592,176.3,176.26,0.7]
[1755630251092,42.64,176.32,176.27,0.7]
[1755630251301,16.9725592,176.3,176.27,0.7]
[1755630251496,42.64,176.32,176.27,0.7]
[1755630251701,16.9725592,176.3,176.25,16.9725592]
[1755630251885,42.64,176.32,176.28,0.7]
[1755630252399,16.9725592,176.31,176.23,13.59559401]
[1755630252585,16.9725592,176.29,176.24,16.9725592]
[1755630252790,42.64,176.32,176.26,16.9725592]
[1755630252991,42.64,176.32,176.27,17.6725592]
[1755630253301,42.64,176.32,176.28,0.7]
[1755630253506,59.6125592,176.32,176.29,0.7]
[1755630253719,42.64,176.32,176.27,16.9725592]
[1755630253891,42.64,176.32,176.3,0.7]
[1755630254213,42.67,176.35,176.31,0.7]
[1755630254385,16.9725592,176.34,176.31,0.7]
[1755630255004,16.9725592,176.33,176.31,0.7]
[1755630255186,16.9725592,176.33,176.29,0.7]
[1755630255400,16.9725592,176.34,176.3,0.7]
[1755630255622,42.67,176.35,176.32,16.9725592]
[1755630255784,0.03,176.35,176.26,13.59559401]
[1755630255979,16.9725592,176.33,176.29,0.7]
[1755630256211,59.6425592,176.35,176.3,0.7]
[1755630256509,16.9725592,176.34,176.3,0.7]
[1755630256876,16.9725592,176.34,176.31,0.7]
[1755630257081,16.9725592,176.34,176.29,16.9725592]
[1755630257309,16.9725592,176.34,176.3,0.7]
[1755630257512,16.9725592,176.34,176.31,0.7]
[1755630258607,59.6425592,176.35,176.31,0.7]
[1755630259691,59.6425592,176.35,176.3,16.9725592]
[1755630259893,16.9725592,176.34,176.28,16.9725592]
[1755630260091,16.9725592,176.34,176.3,0.7]
[1755630260508,42.67,176.35,176.3,0.7]
[1755630260696,16.9725592,176.34,176.3,0.7]
[1755630261426,59.6425592,176.35,176.31,0.7]
[1755630261926,16.9725592,176.34,176.31,0.7]
[1755630262291,0.49,176.33,176.26,13.59559401]
[1755630262489,0.03,176.35,176.27,0.7]
[1755630262714,42.67,176.35,176.31,16.9725592]
[1755630262906,42.67,176.35,176.31,0.7]
[1755630263111,42.67,176.35,176.25,0.7]
[1755630263112,16.9725592,176.32,176.25,0.7]
[1755630263314,42.64,176.31,176.25,0.7]
[1755630263500,16.9725592,176.29,176.25,0.7]
[1755630263887,0.49,176.29,176.23,0.06]
[1755630264094,16.9725592,176.26,176.23,0.06]
[1755630264497,43.13,176.31,176.24,0.7]
[1755630264919,16.9725592,176.3,176.25,16.9725592]
[1755630265112,16.9725592,176.3,176.23,0.06]
[1755630265316,16.9725592,176.29,176.23,0.76]
[1755630265618,16.9725592,176.26,176.23,0.06]
[1755630265819,42.64,176.27,176.23,0.06]
[1755630266194,0.49,176.26,176.23,0.06]
[1755630266414,42.64,176.27,176.23,0.06]
[1755630266717,16.9725592,176.24,176.23,0.06]
[1755630267232,16.9725592,176.24,176.21,0.06]
[1755630267233,26.0,176.22,176.21,0.06]
[1755630267538,85.6125592,176.22,176.21,0.06]
[1755630267741,16.9725592,176.22,176.21,0.06]
[1755630267915,17.3425592,176.22,176.21,0.06]
[1755630268092,0.37,176.22,176.21,0.06]
[1755630268293,4.06640841,176.22,176.21,0.06]
[1755630268495,42.64,176.23,176.21,0.06]
[1755630268809,4.99110846,176.31,176.22,11.506202]
[1755630269009,11.506202,176.23,176.21,0.06]
[1755630269208,37.506202,176.22,176.21,0.06]
[1755630269524,41.57433735,176.22,176.21,0.06]
[1755630269697,41.57433735,176.22,176.12,200.0]
[1755630269698,26.0,176.2,176.12,200.0]
[1755630269896,15.7155508,176.22,176.12,200.0]
[1755630269897,11.506202,176.13,176.12,200.0]
[1755630270124,6.16117058,176.21,176.12,200.0]
[1755630270125,4.62033677,176.21,176.12,200.0]
[1755630270330,26.0,176.18,176.13,11.506202]
[1755630270525,34.34355188,176.26,176.17,11.506202]
[1755630270526,43.08,176.19,176.17,11.506202]
[1755630270708,43.08,176.19,176.17,0.7]
[1755630271121,43.08,176.19,176.13,12.206202]
[1755630271420,11.506202,176.2,176.15,11.506202]
[1755630271646,11.506202,176.24,176.19,11.506202]
[1755630271806,11.506202,176.24,176.14,0.14216157]
[1755630271807,43.1,176.23,176.14,0.14216157]
[1755630272006,11.506202,176.22,176.15,0.7]
[1755630272330,11.506202,176.19,176.15,0.7]
[1755630272637,43.16,176.22,176.18,11.506202]
[1755630272798,0.37,176.3,176.21,11.506202]
[1755630272997,11.506202,176.26,176.2,12.206202]
[1755630273198,11.506202,176.21,176.12,205.31912094]
[1755630273429,11.506202,176.18,176.14,0.7]
[1755630273722,11.506202,176.17,176.14,0.7]
[1755630273925,26.0,176.23,176.14,12.206202]
[1755630274105,43.42,176.22,176.16,11.506202]
[1755630274303,11.506202,176.21,176.17,0.72]
[1755630274507,43.42,176.22,176.17,0.72]
[1755630274739,11.506202,176.21,176.17,0.72]
[1755630275327,11.506202,176.22,176.18,0.72]
[1755630275527,43.42,176.22,176.2,11.506202]
[1755630275762,0.37,176.29,176.21,0.72]
[1755630275914,4.62033677,176.31,176.23,11.506202]
[1755630275915,54.906202,176.28,176.23,11.506202]
[1755630276122,54.906202,176.28,176.24,0.72]
[1755630276430,43.4,176.28,176.25,0.72]
[1755630276613,43.4,176.28,176.26,0.72]
[1755630276823,0.03,176.32,176.27,12.226202]
[1755630277126,0.03,176.32,176.3,11.506202]
[1755630277327,0.03,176.32,176.31,11.506202]
[1755630277520,0.03,176.34,176.31,11.506202]
[1755630277707,0.03,176.4,176.34,13.59559401]
[1755630277915,0.03,176.4,176.37,11.506202]
[1755630278113,0.03,176.4,176.37,25.24395758]
[1755630278309,0.03,176.4,176.38,13.59559401]
[1755630278523,0.03,176.4,176.38,14.31559401]
[1755630278720,0.03,176.4,176.39,25.96395758]
[1755630279150,0.03,176.4,176.39,11.64836357]
[1755630279322,0.03,176.4,176.39,12.36836357]
[1755630279523,0.03,176.43,176.42,39.73775558]
[1755630279746,0.03,176.45,176.43,13.73775558]
[1755630279952,0.03,176.46,176.45,13.59559401]
[1755630280249,0.03,176.48,176.46,0.14216157]
[1755630280452,0.03,176.48,176.47,31.24874664]
[1755630280836,0.03,176.48,176.47,31.39090821]
[1755630281955,0.03,176.48,176.47,17.65315263]
[1755630282160,0.03,176.48,176.47,16.93315263]
[1755630282328,0.03,176.48,176.47,31.39090821]
[1755630283141,0.2,176.52,176.48,13.73775558]
[1755630283337,0.2,176.52,176.49,30.67090821]
[1755630283566,0.2,176.52,176.49,31.39090821]
[1755630284348,0.2,176.52,176.5,13.73775558]
[1755630284544,0.2,176.52,176.51,17.0753142]
[1755630284868,0.2,176.52,176.51,17.7953142]
[1755630285172,0.2,176.52,176.51,16.93315263]
[1755630286058,0.2,176.52,176.45,2.271243]
[1755630286254,0.2,176.52,176.48,16.93315263]
[1755630286452,0.2,176.52,176.44,0.72]
[1755630286653,0.2,176.52,176.49,16.93315263]
[1755630286970,0.55,176.51,176.43,13.59559401]
[1755630287202,0.55,176.51,176.47,16.93315263]
[1755630287358,0.55,176.5,176.41,17.758193]
[1755630287547,17.48315263,176.5,176.44,16.93315263]
[1755630287876,17.48315263,176.49,176.44,16.93315263]
[1755630288177,26.0,176.49,176.48,16.93315263]
[1755630288384,26.55,176.49,176.41,14.31559401]
[1755630288588,43.48315263,176.49,176.39,0.72]
[1755630288760,26.55,176.48,176.42,16.93315263]
[1755630288945,43.48315263,176.48,176.43,16.93315263]
[1755630289148,0.55,176.47,176.39,0.72]
[1755630289375,0.55,176.47,176.44,16.93315263]
[1755630289676,0.55,176.5,176.46,16.93315263]
[1755630289985,0.55,176.5,176.41,0.72]
[1755630289986,26.0,176.51,176.47,16.93315263]
[1755630290155,17.48315263,176.5,176.39,0.14216157]
[1755630290346,42.93315263,176.48,176.43,16.93315263]
[1755630290546,0.55,176.47,176.43,16.93315263]
[1755630290748,0.55,176.46,176.39,0.72]
[1755630290960,0.55,176.46,176.31,5.64230338]
[1755630290961,26.0,176.43,176.31,5.64230338]
[1755630291166,17.48315263,176.42,176.36,16.93315263]
[1755630291362,26.55,176.42,176.33,0.72]
[1755630291594,26.55,176.42,176.37,16.93315263]
[1755630291793,26.55,176.42,176.33,0.72]
[1755630291794,0.55,176.41,176.36,16.93315263]
[1755630292275,17.48315263,176.41,176.36,16.93315263]
[1755630292603,17.48315263,176.4,176.33,0.72]
[1755630292766,43.6,176.39,176.3,14.31559401]
[1755630292959,60.53315263,176.39,176.33,16.93315263]
[1755630293493,43.6,176.39,176.35,16.93315263]
[1755630293888,43.6,176.39,176.36,16.93315263]
[1755630294079,43.6,176.39,176.35,16.93315263]
[1755630294487,43.6,176.39,176.37,16.93315263]
[1755630295190,43.6,176.39,176.38,16.93315263]
[1755630295603,43.6,176.39,176.33,0.72]
[1755630295901,43.6,176.39,176.3,0.14216157]
[1755630295902,43.6,176.39,176.34,16.93315263]
[1755630296102,43.6,176.39,176.3,0.72]
[1755630296103,17.48315263,176.38,176.3,0.72]
[1755630296475,16.93315263,176.38,176.33,16.93315263]
[1755630296698,60.53315263,176.39,176.33,16.93315263]
[1755630297196,44.15,176.39,176.33,16.93315263]
[1755630297384,61.08315263,176.39,176.33,16.93315263]
[1755630297687,61.08315263,176.39,176.34,16.93315263]
[1755630297892,61.08315263,176.39,176.33,16.93315263]
[1755630298492,61.08315263,176.39,176.34,16.93315263]
[1755630298694,43.6,176.39,176.34,16.93315263]
[1755630298997,16.93315263,176.38,176.33,16.93315263]
[1755630299200,43.6,176.39,176.34,16.93315263]
[1755630299398,16.93315263,176.37,176.32,16.93315263]
[1755630299769,16.93315263,176.37,176.29,14.31559401]
[1755630299970,16.93315263,176.37,176.32,16.93315263]
[1755630300175,43.6,176.39,176.33,0.72]
[1755630300494,16.93315263,176.36,176.31,13.59559401]
[1755630300699,16.93315263,176.36,176.32,0.72]
[1755630300896,43.6,176.39,176.34,16.93315263]
[1755630301098,16.93315263,176.35,176.32,0.72]
[1755630301279,43.6,176.39,176.31,0.72]
[1755630301280,16.93315263,176.36,176.31,0.72]
[1755630301598,0.55,176.41,176.33,16.93315263]
[1755630301808,16.93315263,176.39,176.34,0.72]
[1755630302101,16.93315263,176.39,176.3,13.59559401]
[1755630302102,16.93315263,176.35,176.31,0.72]
[1755630302401,43.42,176.4,176.32,13.59559401]
[1755630302708,43.42,176.41,176.36,16.93315263]
[1755630302896,131.0,176.46,176.37,0.72]
[1755630303078,60.39315263,176.45,176.38,13.59559401]
[1755630303276,43.46,176.44,176.39,0.72]
[1755630303481,43.46,176.44,176.39,17.65315263]
[1755630303691,43.46,176.44,176.34,13.73775558]
[1755630303692,43.46,176.44,176.41,16.93315263]
[1755630303981,0.2,176.52,176.4,0.72]
[1755630303982,16.93315263,176.48,176.43,16.93315263]
[1755630304180,43.46,176.49,176.44,17.62315263]
[1755630304403,43.46,176.49,176.45,0.69]
[1755630304716,0.2,176.52,176.48,16.93315263]
[1755630305013,0.2,176.52,176.5,16.93315263]
[1755630305188,0.2,176.52,176.51,17.62315263]
[1755630305511,0.2,176.52,176.51,31.36090821]
[1755630305672,0.03,176.55,176.54,30.67090821]
[1755630305873,0.03,176.56,176.54,30.67090821]
[1755630305874,0.03,176.56,176.55,13.73775558]
[1755630306100,0.03,176.56,176.55,30.67090821]
[1755630306315,0.03,176.56,176.55,31.36090821]
[1755630306515,1.2534995,176.59,176.58,13.59559401]
[1755630306726,0.03,176.64,176.63,13.59559401]
[1755630306904,0.03,176.64,176.63,36.22422304]
[1755630307100,0.03,176.64,176.63,36.83422304]
[1755630307995,0.03,176.64,176.63,19.90107041]
[1755630308229,0.03,176.64,176.63,36.83422304]
[1755630309402,0.03,176.64,176.63,39.59559401]
[1755630309607,0.03,176.64,176.63,56.67090821]
[1755630309813,0.03,176.64,176.62,13.59559401]
[1755630310017,0.03,176.64,176.63,16.93315263]
[1755630310216,0.03,176.64,176.63,31.13874664]
[1755630310431,0.03,176.64,176.63,31.28090821]
[1755630310598,0.03,176.64,176.63,39.59559401]
[1755630310931,0.03,176.64,176.63,13.59559401]
[1755630311107,0.03,176.64,176.61,49.3429808]
[1755630311315,17.62315263,176.64,176.57,44.19]
[1755630311510,16.93315263,176.61,176.54,0.61]
[1755630311706,16.93315263,176.6,176.54,43.58]
[1755630311956,16.93315263,176.59,176.54,43.58]
[1755630312243,16.93315263,176.57,176.51,60.53315263]
[1755630312541,17.59315263,176.58,176.52,13.59559401]
[1755630312707,0.66,176.62,176.56,16.93315263]
[1755630313034,16.93315263,176.61,176.57,13.59559401]
[1755630313326,16.93315263,176.61,176.57,16.93315263]
[1755630313327,0.66,176.61,176.57,16.93315263]
[1755630313549,17.59315263,176.6,176.56,16.933153]
[1755630313756,0.66,176.59,176.54,56.52874664]
[1755630313942,16.93315263,176.55,176.46,0.61]
[1755630314149,42.96315263,176.64,176.37,14.50649882]
[1755630314150,16.93315263,176.52,176.4,10.0]
[1755630314451,16.93315263,176.52,176.43,0.61]
[1755630314627,16.93315263,176.49,176.43,16.93315263]
[1755630314827,16.93315263,176.46,176.44,17.035292]
[1755630315031,17.59315263,176.46,176.39,43.62]
[1755630315242,16.93315263,176.45,176.39,60.55315263]
[1755630315445,0.66,176.49,176.41,17.039162]
[1755630315646,0.66,176.47,176.4,16.93315263]
[1755630315836,16.93315263,176.46,176.41,16.93315263]
[1755630316140,16.93315263,176.44,176.4,17.039162]
[1755630316330,0.66,176.49,176.41,16.93315263]
[1755630316541,0.66,176.49,176.44,13.59559401]
[1755630316742,17.037226,176.59,176.4,17.649162]
[1755630316743,16.93315263,176.51,176.45,30.52874664]
[1755630317063,16.93315263,176.51,176.41,0.61]
[1755630317064,16.93315263,176.5,176.43,0.14216157]
[1755630317279,16.93315263,176.49,176.44,13.59559401]
[1755630317563,0.66,176.51,176.45,16.93315263]
[1755630317861,4.62033677,176.62,176.46,30.52874664]
[1755630317862,0.66,176.54,176.46,30.52874664]
[1755630318063,16.93315263,176.5,176.45,13.73775558]
[1755630318248,0.66,176.5,176.45,13.73775558]
[1755630318441,17.59315263,176.5,176.45,13.73775558]
[1755630318655,0.66,176.58,176.5,13.59559401]
[1755630318855,0.66,176.58,176.52,16.93315263]
[1755630319163,16.93315263,176.56,176.51,16.93315263]
[1755630319347,0.66,176.56,176.51,16.93315263]
[1755630319668,16.93315263,176.57,176.51,16.93315263]
[1755630319962,16.93315263,176.58,176.52,16.93315263]
[1755630320481,16.93315263,176.56,176.5,0.14216157]
[1755630320631,16.93315263,176.56,176.51,13.59559401]
[1755630320838,17.59315263,176.55,176.44,43.6]
[1755630321070,16.93315263,176.52,176.44,57.39775558]
[1755630321276,0.66,176.54,176.44,57.39775558]
[1755630321447,16.93315263,176.53,176.49,13.59559401]
[1755630321646,16.93315263,176.53,176.47,16.93315263]
[1755630321860,0.66,176.52,176.45,16.93315263]
[1755630322051,16.93315263,176.49,176.45,13.59559401]
[1755630322256,0.66,176.49,176.45,13.59559401]
[1755630322452,4.32975839,176.54,176.47,13.59559401]
[1755630322660,16.93315263,176.53,176.47,0.14216157]
[1755630322860,16.93315263,176.52,176.46,30.52874664]
[1755630323064,16.93315263,176.49,176.45,13.73775558]
[1755630323365,16.93315263,176.46,176.4,34.03231463]
[1755630323568,16.93315263,176.46,176.41,13.59559401]
[1755630323758,0.66,176.48,176.41,30.52874664]
[1755630323960,16.93315263,176.47,176.41,30.52874664]
[1755630324173,16.93315263,176.46,176.41,30.52874664]
[1755630324343,26.0,176.52,176.4,17.099162]
[1755630324344,16.93315263,176.44,176.4,17.099162]
[1755630324668,16.93315263,176.46,176.4,13.65559401]
[1755630324861,16.93315263,176.46,176.41,16.93315263]
[1755630325443,0.66,176.45,176.4,30.58874664]
[1755630325644,0.66,176.45,176.41,16.93315263]
[1755630326778,0.66,176.51,176.43,16.93315263]